bitfinex/quotes_ETHUSD_20230405
["timestamp","ask_amount","ask_price","bid_price","bid_amount"]
[1680710663880,1.44946069,1898.5,1898.3,30.5335938]
[1680710664082,1.44946069,1898.5,1898.3,0.6735938]
[1680710664271,1.44946069,1898.5,1898.3,0.6655938]
[1680710664475,1.44946069,1898.5,1898.3,0.13314787]
[1680710664668,0.14494607,1898.4,1898.3,0.13314787]
[1680710666545,1.44946069,1898.5,1898.3,0.13314787]
[1680710669208,1.44946069,1898.5,1898.3,0.13314787]
[1680710674713,1.44946069,1898.5,1898.4,0.23]
[1680710676945,11.8314,1898.8,1898.4,0.23]
[1680710677143,1.44946069,1898.5,1898.4,0.23]
[1680710678133,1.44946069,1898.5,1898.4,0.234]
[1680710678537,11.8314,1898.8,1898.4,1.339]
[1680710678845,1.44946069,1898.7,1898.4,3.6129029]
[1680710679039,1.44946069,1898.7,1898.4,3.6189029]
[1680710679248,1.44946069,1898.7,1898.5,3.0]
[1680710679434,1.44946069,1898.7,1898.5,3.006]
[1680710679836,1.44946069,1898.7,1898.6,0.23]
[1680710681656,0.002,1898.8,1898.6,1.34478129]
[1680710681814,1.44946069,1898.9,1898.7,1.105]
[1680710682153,1.3146507,1898.9,1898.8,0.23]
[1680710685619,1.3146507,1898.9,1898.8,0.76323189]
[1680710685932,1.3146507,1898.9,1898.8,0.23]
[1680710689741,1.3146507,1898.9,1898.8,0.75686468]
[1680710689944,1.3146507,1898.9,1898.8,0.23]
[1680710690655,1.3146507,1898.9,1898.7,0.2337811]
[1680710692054,11.91501964,1899.2,1898.7,0.2337811]
[1680710692258,1.3146507,1899.0,1898.7,0.2337811]
[1680710693361,11.89620001,1899.2,1898.8,1.104]
[1680710693652,13.21085071,1899.2,1898.9,0.23]
[1680710694246,1.3146507,1899.1,1898.9,0.23]
[1680710697859,11.89620001,1899.2,1898.8,0.23]
[1680710698063,13.66793001,1899.2,1898.8,0.23]
[1680710698224,1.3146507,1899.0,1898.8,0.23]
[1680710703862,0.11200001,1899.2,1898.8,0.23]
[1680710704065,1.42465071,1899.2,1898.8,0.23]
[1680710707867,1.42065897,1899.2,1898.8,0.2397809]
[1680710709884,1.42065897,1899.2,1898.8,0.37140768]
[1680710710268,0.10600827,1899.2,1898.9,1.47363]
[1680710710462,0.10600827,1899.2,1899.0,0.23]
[1680710710644,0.10600827,1899.2,1899.0,0.232]
[1680710711069,0.10600827,1899.2,1899.0,0.236]
[1680710713901,0.10600827,1899.2,1899.0,0.23]
[1680710720431,1.3146507,1899.0,1898.8,0.13962678]
[1680710720724,0.10600827,1899.2,1898.8,0.13162678]
[1680710720725,1.3146507,1899.1,1898.8,0.13162678]
[1680710721187,12.5327,1899.1,1898.8,0.13162678]
[1680710721382,1.3146507,1898.9,1898.8,0.13162678]
[1680710721781,1.3146507,1898.9,1898.8,0.36162678]
[1680710722831,1.3146507,1898.9,1898.8,0.13162678]
[1680710728110,1.3146507,1898.9,1898.8,0.13362678]
[1680710729107,1.3146507,1898.9,1898.8,0.13162678]
[1680710729108,1.31076185,1898.9,1898.8,0.13162678]
[1680710749836,1.30746759,1898.9,1898.8,0.13162678]
[1680710751269,1.43821435,1898.9,1898.8,0.13162678]
[1680710752070,2.37621435,1898.9,1898.8,0.13162678]
[1680710754807,1.30746759,1898.5,1898.4,29.86]
[1680710755002,1.30746759,1898.5,1898.3,0.002]
[1680710755003,3.31121435,1898.5,1898.3,0.002]
[1680710755217,3.31121435,1898.5,1898.1,0.002]
[1680710755218,1.30746759,1898.2,1898.1,0.002]
[1680710755394,1.30746759,1898.2,1897.8,32.27112748]
[1680710755395,1.30746759,1897.9,1897.8,32.27112748]
[1680710755577,1.30746759,1897.9,1897.8,0.13722458]
[1680710755780,1.30746759,1897.9,1897.8,0.13122458]
[1680710756093,1.32628722,1897.9,1897.8,0.13122458]
[1680710756467,1.45891594,1897.9,1897.8,0.13122458]
[1680710761698,1.30746759,1897.5,1897.4,0.427097]
[1680710761899,1.30746759,1897.5,1897.4,0.421097]
[1680710763514,2.41646759,1897.5,1897.4,0.421097]
[1680710763755,3.91758631,1897.5,1897.4,0.421097]
[1680710764040,4.41758631,1897.5,1897.4,0.421097]
[1680710765348,1.30746759,1897.0,1896.9,0.1]
[1680710765530,1.43821435,1897.0,1896.9,0.1]
[1680710765729,2.54821435,1897.0,1896.9,0.1]
[1680710766039,3.04821435,1897.0,1896.9,0.1]
[1680710766202,0.1,1896.9,1896.6,0.22881669]
[1680710766403,3.41746759,1896.7,1896.6,0.1]
[1680710766936,9.71275014,1896.7,1896.6,0.1]
[1680710767142,9.72275014,1896.7,1896.6,0.1]
[1680710767367,10.79792515,1896.7,1896.5,0.1]
[1680710767660,6.90528255,1896.6,1896.5,0.1]
[1680710767825,6.90728255,1896.6,1896.5,0.1]
[1680710768970,7.61064218,1896.6,1896.5,0.1]
[1680710769176,8.57623066,1896.6,1896.5,0.1]
[1680710769666,6.06846759,1896.5,1896.4,0.1]
[1680710769964,5.47046759,1896.5,1896.4,0.1]
[1680710770523,6.57146759,1896.5,1896.4,0.1]
[1680710770770,7.50650916,1896.5,1896.4,0.1]
[1680710772800,10.82534171,1896.5,1896.4,0.1]
[1680710773072,10.82534171,1896.5,1896.1,0.1]
[1680710773073,2.30746759,1896.3,1896.1,0.1]
[1680710773246,6.05175014,1896.3,1896.1,0.1]
[1680710773571,7.08602515,1896.3,1896.1,0.1]
[1680710773776,7.58602515,1896.3,1896.1,0.1]
[1680710774670,4.9517426,1896.3,1896.1,0.1]
[1680710774887,3.9497426,1896.3,1896.1,0.1]
[1680710775100,4.9497426,1896.3,1896.1,0.1]
[1680710775782,3.9497426,1896.3,1896.1,0.1]
[1680710775986,3.91746759,1896.3,1896.1,0.1]
[1680710776353,3.93628722,1896.3,1896.1,0.1]
[1680710776548,4.12084722,1896.3,1896.1,0.1]
[1680710776890,1.609,1896.2,1896.1,0.1]
[1680710777211,2.83508298,1896.2,1896.1,0.1]
[1680710777415,2.65051298,1896.2,1896.1,0.1]
[1680710777759,5.46936553,1896.2,1896.1,0.1]
[1680710777954,8.44779553,1896.2,1896.1,0.1]
[1680710778517,8.44779553,1896.2,1895.9,0.1]
[1680710778518,4.46846759,1896.0,1895.9,0.1]
[1680710778708,8.21275014,1896.0,1895.9,0.1]
[1680710778991,9.34256977,1896.0,1895.9,0.1]
[1680710779191,20.81656977,1896.0,1895.9,0.1]
[1680710779402,23.1980817,1896.0,1895.9,0.1]
[1680710779759,22.0880817,1896.0,1895.9,0.1]
[1680710781261,22.2726717,1896.0,1895.9,0.1]
[1680710781456,22.0880817,1896.0,1895.9,0.1]
[1680710781861,16.29279915,1896.0,1895.9,0.1]
[1680710782517,19.1116717,1896.0,1895.8,0.1]
[1680710782718,19.1116717,1896.0,1895.5,0.18219433]
[1680710782719,0.5,1895.8,1895.5,0.18219433]
[1680710782906,1.30746759,1895.6,1895.5,0.18219433]
[1680710783090,1.30746759,1895.6,1895.5,0.05]
[1680710783504,1.43821435,1895.6,1895.5,0.05]
[1680710785725,1.30746759,1895.1,1894.9,0.006]
[1680710785893,1.30746759,1895.1,1894.8,0.76698788]
[1680710786807,1.30746759,1895.1,1894.8,0.89544707]
[1680710787015,1.30746759,1895.1,1894.8,0.89744707]
[1680710787596,1.30746759,1895.1,1894.8,2.00744707]
[1680710787802,0.01881963,1895.2,1894.8,2.00744707]
[1680710787803,1.30746759,1895.2,1894.9,1.329]
[1680710788527,1.30746759,1895.2,1894.9,0.236]
[1680710788722,1.30746759,1895.2,1894.9,0.006]
[1680710796755,1.30746759,1895.2,1894.8,0.90323595]
[1680710797253,1.30746759,1895.2,1894.8,0.89944707]
[1680710798883,1.30746759,1895.2,1894.8,2.00944707]
[1680710799083,1.30746759,1895.2,1894.9,1.099]
[1680710800149,1.30746759,1895.2,1894.8,1.99844707]
[1680710800361,1.30746759,1895.2,1894.8,0.89944707]
[1680710800763,1.30746759,1895.2,1894.8,2.00544707]
[1680710801196,1.30746759,1895.2,1894.8,1.77663007]
[1680710801363,1.30746759,1895.2,1894.9,1.11]
[1680710802792,1.30746759,1895.2,1894.9,1.10781151]
[1680710802991,1.30746759,1895.2,1895.1,1.106]
[1680710803558,1.30746759,1895.2,1894.9,4.112]
[1680710803759,1.30746759,1895.2,1894.9,1.11]
[1680710806795,1.30746759,1895.2,1895.1,1.11]
[1680710808607,1.30746759,1895.2,1895.0,1.099]
[1680710810777,1.31546759,1895.2,1895.0,1.099]
[1680710812075,1.30746759,1895.2,1895.1,1.11]
[1680710814478,0.008,1895.3,1895.1,2.212]
[1680710814810,0.008,1895.4,1895.2,2.432]
[1680710815105,1.31546759,1895.7,1895.3,2.22]
[1680710815307,1.31546759,1895.7,1895.6,1.11]
[1680710815696,0.008,1895.7,1895.6,1.11]
[1680710815900,1.31546759,1895.8,1895.6,1.11]
[1680710817393,0.008,1895.9,1895.7,1.33978708]
[1680710817736,0.421902,1896.5,1895.8,1.11]
[1680710817737,1.30746759,1896.1,1895.8,1.11]
[1680710817893,1.30746759,1896.1,1895.7,0.23378708]
[1680710817894,0.008,1896.1,1895.9,1.11]
[1680710818099,1.31546759,1896.2,1896.0,1.11]
[1680710818692,0.008,1896.2,1896.0,1.11]
[1680710818920,5.3859,1896.4,1896.1,1.11378628]
[1680710818921,0.008,1896.3,1896.1,1.11378628]
[1680710819124,0.421902,1896.5,1896.2,1.11]
[1680710819435,0.421902,1896.5,1896.3,1.106]
[1680710819733,1.30746759,1896.4,1896.1,1.11378628]
[1680710819929,1.30746759,1896.4,1896.3,1.106]
[1680710820706,1.30746759,1896.4,1896.2,1.106]
[1680710820911,1.48120455,1896.4,1896.1,0.52458033]
[1680710821112,1.48120455,1896.4,1896.0,3.0]
[1680710821113,0.17373696,1896.4,1896.0,3.0]
[1680710821317,1.30746759,1896.2,1895.9,0.002]
[1680710821517,17.5379,1896.4,1895.8,1.099]
[1680710821725,1.30746759,1896.2,1895.7,1.101]
[1680710822050,0.008,1896.2,1895.6,1.11]
[1680710822254,1.30746759,1896.0,1895.6,1.11]
[1680710822906,0.02681963,1896.1,1895.8,1.106]
[1680710823307,1.30746759,1896.0,1895.8,1.106]
[1680710824810,0.02681963,1896.1,1895.8,1.106]
[1680710825342,0.01676131,1896.1,1895.8,1.106]
[1680710826158,1.30746759,1896.0,1895.8,1.106]
[1680710831142,1.30746759,1896.0,1895.7,1.112]
[1680710831345,1.30746759,1896.0,1895.7,1.106]
[1680710832140,1.30746759,1896.0,1895.6,1.24833943]
[1680710841582,1.30746759,1896.0,1895.7,1.11]
[1680710841777,1.30746759,1896.0,1895.8,0.00214505]
[1680710841978,1.30746759,1896.0,1895.8,1.34214505]
[1680710842381,0.002,1896.3,1895.8,1.34214505]
[1680710842594,0.002,1896.4,1896.1,1.11]
[1680710842909,1.30746759,1896.5,1896.2,0.23]
[1680710843266,0.002,1896.8,1896.2,1.34]
[1680710843459,1.30746759,1896.4,1896.2,1.34]
[1680710843661,1.30746759,1896.4,1896.3,0.00370382]
[1680710847800,1.30531099,1896.4,1896.3,0.00370382]
[1680710848006,1.30531099,1896.4,1896.3,0.52606757]
[1680710848165,1.30531099,1896.4,1896.3,0.00370382]
[1680710848787,1.30531099,1896.7,1896.3,0.00370382]
[1680710848996,1.30531099,1896.7,1896.4,1.11]
[1680710849575,1.30531099,1896.7,1896.6,1.11]
[1680710849967,1.30531099,1896.7,1896.6,1.34]
[1680710851185,1.30531099,1896.9,1896.6,0.23]
[1680710851570,1.30531099,1896.9,1896.5,3.23222222]
[1680710854313,1.43584209,1896.9,1896.5,3.0]
[1680710854536,0.1305311,1896.9,1896.3,0.008]
[1680710854736,1.30531099,1896.6,1896.2,0.52044824]
[1680710855027,1.30531099,1896.6,1895.8,2.2779029]
[1680710855028,1.30531099,1896.3,1895.8,0.002]
[1680710855179,0.1305311,1896.2,1895.7,0.002]
[1680710855380,1.502,1896.7,1895.6,0.13255215]
[1680710855381,1.30531099,1895.9,1895.6,0.13255215]
[1680710855575,1.30531099,1895.9,1895.6,0.13855215]
[1680710855778,1.30531099,1895.9,1895.6,0.13455215]
[1680710855978,1.30531099,1895.9,1895.6,0.13255215]
[1680710856178,1.29531099,1895.9,1895.6,0.13255215]
[1680710857474,1.42484209,1895.9,1895.6,0.13255215]
[1680710857629,1.44160341,1895.9,1895.6,0.13255215]
[1680710858044,0.14629242,1895.9,1895.6,0.13255215]
[1680710858344,1.29531099,1895.8,1895.6,0.13255215]
[1680710859126,13.75501099,1895.8,1895.6,0.13255215]
[1680710859343,13.75701099,1895.8,1895.6,0.13255215]
[1680710859492,1.29531099,1895.5,1895.1,0.006]
[1680710859840,1.29531099,1895.5,1895.0,0.01174502]
[1680710860004,1.29531099,1895.5,1895.0,1.10474502]
[1680710860202,1.29531099,1895.5,1895.0,3.38264792]
[1680710860440,1.29531099,1895.5,1895.0,1.11074502]
[1680710860740,1.29531099,1895.5,1895.0,1.10474502]
[1680710860941,1.29531099,1895.5,1895.0,3.38264792]
[1680710861096,1.29531099,1895.5,1895.1,3.0]
[1680710861307,1.29531099,1895.5,1895.1,0.004]
[1680710861542,1.29531099,1895.5,1895.0,3.01174502]
[1680710863008,1.29531099,1895.5,1895.0,3.27519444]
[1680710863654,1.29531099,1895.5,1895.0,4.37419444]
[1680710864455,1.29531099,1895.5,1895.1,1.11]
[1680710864658,17.7761,1895.8,1895.2,0.23]
[1680710864818,1.29531099,1895.5,1895.2,1.34]
[1680710865556,17.7761,1895.8,1895.2,1.34]
[1680710865853,17.7681,1895.8,1895.2,1.34]
[1680710866013,1.29531099,1895.5,1895.2,1.34]
[1680710866679,1.29531099,1895.5,1895.2,1.346]
[1680710867571,17.7681,1895.8,1895.2,1.346]
[1680710867778,1.29531099,1895.5,1895.2,1.34]
[1680710867974,1.29531099,1895.5,1895.2,1.346]
[1680710868536,1.29531099,1895.5,1895.2,4.346]
[1680710868878,1.29531099,1895.5,1895.2,1.346]
[1680710869051,1.29531099,1895.5,1895.2,1.34]
[1680710869545,1.29531099,1895.5,1895.2,0.23]
[1680710870084,1.29531099,1895.5,1895.1,1.38519413]
[1680710870085,1.29531099,1895.5,1895.1,0.27519413]
[1680710870398,0.1295311,1895.5,1895.0,0.006]
[1680710870535,0.1295311,1895.5,1894.9,0.421573]
[1680710870536,1.29531099,1895.2,1894.9,0.421573]
[1680710875338,1.29531099,1895.2,1895.0,0.23]
[1680710876586,1.29531099,1895.2,1894.9,1.099]
[1680710876759,1.29531099,1895.2,1894.8,1.77637569]
[1680710877876,1.29531099,1895.2,1894.9,0.23]
[1680710881391,2.30835343,1895.2,1894.8,0.93382511]
[1680710882447,2.30835343,1895.2,1894.8,0.67037569]
[1680710883481,1.29531099,1895.2,1894.8,0.67037569]
[1680710883681,1.29531099,1895.2,1894.9,0.23]
[1680710884070,1.29531099,1894.9,1894.8,0.66463007]
[1680710884403,1.29531099,1894.9,1894.8,0.13245919]
[1680710886393,1.42484209,1894.9,1894.8,0.13245919]
[1680710887676,1.29531099,1894.9,1894.8,0.13245919]
[1680710888401,1.29531099,1894.9,1894.8,0.13820481]
[1680710888559,1.29531099,1895.0,1894.8,0.13820481]
[1680710890448,1.29531099,1895.0,1894.8,1.23720481]
[1680710890986,1.29531099,1895.0,1894.9,1.336]
[1680710891146,1.29531099,1895.1,1894.9,4.336]
[1680710891367,1.29531099,1895.1,1895.0,1.11]
[1680710891682,1.29531099,1895.1,1894.9,4.59444942]
[1680710891891,1.29531099,1895.1,1894.9,1.59244942]
[1680710893899,0.008,1895.4,1895.0,1.106]
[1680710894096,1.29731099,1895.5,1895.1,1.34]
[1680710894097,1.29531099,1895.3,1895.1,1.34]
[1680710894321,1.29531099,1895.3,1895.0,1.36244942]
[1680710894624,1.29531099,1895.3,1895.2,0.23]
[1680710894902,1.42564209,1895.3,1894.9,3.002]
[1680710895068,1.29531099,1895.1,1895.0,3.0]
[1680710895265,1.29531099,1895.1,1894.8,0.13445919]
[1680710895494,1.29531099,1895.1,1894.8,0.13245919]
[1680710895693,1.29531099,1894.9,1894.8,0.13245919]
[1680710897970,1.29531099,1894.9,1894.7,0.1]
[1680710899914,1.29233979,1894.9,1894.7,0.1]
[1680710900103,1.29233979,1894.9,1894.7,0.22974684]
[1680710902214,0.01676132,1894.8,1894.7,0.1]
[1680710902403,0.6459953,1894.8,1894.7,0.1]
[1680710903992,0.1459953,1894.8,1894.7,0.1]
[1680710906395,1.2469953,1894.8,1894.7,0.1]
[1680710906723,12.0641953,1894.8,1894.7,0.1]
[1680710906908,12.0661953,1894.8,1894.7,0.1]
[1680710910227,11.9202,1894.8,1894.7,0.1]
[1680710916095,11.8802,1894.8,1894.7,0.1]
[1680710920404,0.002,1894.8,1894.7,0.1]
[1680710920625,1.29233979,1894.9,1894.7,0.1]
[1680710921029,1.29233979,1894.9,1894.8,0.00574562]
[1680710921214,1.29233979,1894.9,1894.7,0.1]
[1680710922653,1.4232499,1894.9,1894.7,0.1]
[1680710922953,1.44001122,1894.9,1894.7,0.1]
[1680710923156,2.55001122,1894.9,1894.7,0.1]
[1680710923451,0.5,1894.8,1894.7,0.1]
[1680710928444,1.61,1894.8,1894.7,0.1]
[1680710928650,2.45628112,1894.8,1894.7,0.1]
[1680710929239,1.34628112,1894.8,1894.7,0.1]
[1680710933664,2.45628112,1894.8,1894.7,0.1]
[1680710935770,1.34628112,1894.8,1894.7,0.1]
[1680710936474,0.84628112,1894.8,1894.7,0.1]
[1680710936672,6.71313979,1894.9,1894.7,0.1]
[1680710936871,6.70513979,1894.9,1894.7,0.1]
[1680710939390,6.7026165,1894.9,1894.7,0.1]
[1680710942894,1.2918165,1894.9,1894.7,0.1]
[1680710943108,1.2898165,1894.9,1894.7,0.1]
[1680710945586,1.2898165,1894.9,1894.7,0.106]
[1680710946259,1.2898165,1894.9,1894.7,0.102]
[1680710946454,1.2898165,1894.9,1894.7,0.1]
[1680710946873,1.2898165,1894.9,1894.7,1.214]
[1680710947050,1.2898165,1894.9,1894.7,1.22]
[1680710947252,1.2898165,1894.9,1894.8,1.114]
[1680710947480,1.2898165,1894.9,1894.8,0.23]
[1680710947705,1.2898165,1894.9,1894.8,0.006]
[1680710947890,1.2898165,1894.9,1894.7,0.6344598]
[1680710948518,1.2898165,1894.9,1894.7,0.64020573]
[1680710950138,1.2898165,1894.9,1894.7,0.11174593]
[1680710950715,1.2898165,1894.9,1894.7,0.106]
[1680710951081,1.2898165,1894.9,1894.7,0.1]
[1680710951287,1.41879815,1894.9,1894.7,0.1]
[1680710953416,1.2898165,1894.9,1894.7,0.1]
[1680710954191,1.2898165,1894.9,1894.7,0.106]
[1680710954622,1.2898165,1894.9,1894.7,0.1]
[1680710960921,1.30657782,1894.9,1894.7,0.1]
[1680710964205,1.30338483,1894.9,1894.7,0.1]
[1680710964395,0.13033848,1894.8,1894.7,0.1]
[1680710968737,0.63033848,1894.8,1894.7,0.1]
[1680710970963,9.19976103,1894.8,1894.7,0.1]
[1680710971118,7.71833103,1894.8,1894.7,0.1]
[1680710971555,8.08776103,1894.8,1894.7,0.1]
[1680710972560,1.28662351,1894.1,1894.0,0.1]
[1680710972726,2.40062351,1894.1,1894.0,0.1]
[1680710973057,1.28662351,1894.1,1894.0,0.1]
[1680710976348,2.40062351,1894.1,1894.0,0.1]
[1680710976550,4.42641899,1894.1,1894.0,0.1]
[1680710976873,10.22170154,1894.1,1894.0,0.1]
[1680710977049,10.22370154,1894.1,1894.0,0.1]
[1680710977233,10.40848154,1894.1,1894.0,0.1]
[1680710977956,4.42841899,1894.1,1894.0,0.1]
[1680710978129,4.61119899,1894.1,1894.0,0.1]
[1680710978524,5.11119899,1894.1,1894.0,0.1]
[1680710978760,11.27804154,1894.1,1894.0,0.1]
[1680710979268,4.44762351,1893.8,1893.3,0.106]
[1680710979465,4.44762351,1893.8,1893.3,0.1]
[1680710979466,1.28662351,1893.4,1893.3,0.1]
[1680710980466,2.90062351,1893.4,1893.3,0.1]
[1680710980635,1.68808586,1893.4,1893.3,0.1]
[1680710980839,1.28662351,1893.4,1893.3,0.1]
[1680710982250,1.30338483,1893.4,1893.2,0.1]
[1680710983073,1.28662351,1893.6,1893.2,1.215]
[1680710983373,0.002,1893.7,1893.4,1.11]
[1680710983559,1.28662351,1893.9,1893.4,1.11]
[1680710984285,1.28662351,1893.9,1893.5,1.116]
[1680710984635,1.28662351,1893.9,1893.4,1.11974987]
[1680710985046,1.30538483,1894.0,1893.6,1.108]
[1680710985247,0.01676132,1894.0,1893.6,1.108]
[1680710985572,1.28662351,1893.9,1893.6,1.108]
[1680710985942,1.28662351,1893.9,1893.5,1.11]
[1680710986766,1.28662351,1893.9,1893.4,0.00574987]
[1680710986767,1.28662351,1893.9,1893.4,1.12174987]
[1680710987450,1.28662351,1893.9,1893.5,1.108]
[1680710988256,1.28662351,1893.9,1893.4,1.12174987]
[1680710989045,1.28662351,1893.9,1893.3,0.008]
[1680710989046,1.28662351,1893.7,1893.3,0.008]
[1680710989244,1.28662351,1893.7,1893.2,29.96]
[1680710989245,12.4695,1893.8,1893.2,29.968]
[1680710989474,0.002,1893.8,1893.4,1.108]
[1680710989672,1.28662351,1893.9,1893.4,1.108]
[1680710990888,0.502,1894.2,1893.5,1.116]
[1680710991070,1.28662351,1893.9,1893.5,1.116]
[1680710991685,1.28662351,1893.9,1893.4,1.108]
[1680710992196,1.28662351,1893.9,1893.3,33.983]
[1680710992374,1.28662351,1893.9,1893.3,4.123]
[1680710992548,1.28662351,1893.9,1893.4,4.116]
[1680710992752,1.28662351,1893.9,1893.3,0.01175018]
[1680710992753,1.28662351,1893.9,1893.5,1.11]
[1680710992949,0.002,1894.2,1893.5,1.11]
[1680710993149,1.28662351,1894.1,1893.7,1.116]
[1680710994660,0.12866235,1894.1,1893.5,1.11374957]
[1680710994859,1.28662351,1893.9,1893.5,1.11374957]
[1680710995871,1.30338483,1893.9,1893.5,0.00574957]
[1680710996145,1.30338483,1893.9,1893.4,3.008]
[1680710996146,0.13033848,1893.8,1893.4,0.004]
[1680710996484,1.28662351,1893.6,1893.3,29.868]
[1680710996782,1.28662351,1893.6,1893.3,30.976]
[1680710997688,12.4204,1893.8,1893.3,30.976]
[1680710997885,12.4204,1893.8,1893.3,1.116]
[1680710998099,13.66491613,1893.8,1893.2,4.22175048]
[1680710998400,1.28662351,1893.6,1893.2,4.22175048]
[1680710999064,1.28662351,1893.6,1893.3,3.0]
[1680710999391,13.66491613,1893.8,1893.3,0.006]
[1680710999563,1.36649161,1893.7,1893.2,1.22175048]
[1680711000313,1.28662351,1893.6,1893.2,1.22175048]
[1680711000689,13.70702351,1893.8,1893.2,0.11175048]
[1680711000903,13.70702351,1893.8,1893.6,1.116]
[1680711001189,1.28862351,1893.8,1893.6,1.116]
[1680711001349,1.28662351,1893.8,1893.6,1.116]
[1680711001778,1.28662351,1893.8,1893.5,1.108]
[1680711002802,0.002,1894.0,1893.7,1.11]
[1680711002963,1.28662351,1894.1,1893.8,1.115]
[1680711003952,5.3541,1894.4,1894.0,1.115]
[1680711003953,1.29662351,1894.4,1894.0,1.115]
[1680711004191,1.28662351,1894.4,1894.1,1.108]
[1680711004399,1.28662351,1894.4,1894.0,1.115]
[1680711005401,1.28440061,1894.4,1894.0,1.115]
[1680711005824,1.13440061,1894.4,1894.0,1.115]
[1680711006152,1.13440061,1894.4,1893.9,1.11374835]
[1680711006351,1.13440061,1894.4,1893.8,0.006]
[1680711006352,1.13440061,1894.3,1893.8,0.006]
[1680711006627,0.11344006,1894.4,1893.8,3.0]
[1680711006792,1.13440061,1894.1,1893.8,0.006]
[1680711006993,1.13440061,1894.1,1893.7,0.006]
[1680711007528,1.13440061,1894.1,1893.6,0.01174926]
[1680711007715,1.2495168,1894.1,1893.6,3.01174926]
[1680711007894,1.2495168,1894.1,1893.6,0.01174926]
[1680711008091,1.13440061,1894.1,1893.7,1.108]
[1680711008304,1.13440061,1893.9,1893.6,0.00574926]
[1680711009230,1.11386533,1893.9,1893.6,0.00574926]
[1680711009416,1.22525186,1893.9,1893.6,0.00574926]
[1680711009815,1.22525186,1893.9,1893.3,4.116]
[1680711010037,1.22525186,1893.9,1893.4,1.11]
[1680711010834,1.11386533,1893.9,1893.5,1.11]
[1680711011021,12.0256,1894.1,1893.7,1.108]
[1680711011507,1.11386533,1894.0,1893.7,1.108]
[1680711011706,1.11386533,1894.0,1893.6,1.108]
[1680711011905,12.0256,1894.1,1893.6,1.108]
[1680711012110,1.11386533,1894.0,1893.6,1.108]
[1680711013430,1.11386533,1894.0,1893.6,1.11374926]
[1680711013940,12.04236132,1894.1,1893.6,1.11374926]
[1680711014237,13.15622665,1894.1,1893.6,1.11374926]
[1680711014739,13.15622665,1894.1,1893.7,1.108]
[1680711014936,12.04236132,1894.1,1893.7,1.108]
[1680711015144,0.002,1894.1,1893.8,1.12174866]
[1680711015438,6.52376533,1894.3,1893.8,1.12174866]
[1680711015439,0.002,1894.3,1893.8,1.12174866]
[1680711015646,1.11386533,1894.5,1893.9,1.116]
[1680711017866,1.11386533,1894.3,1893.7,4.123]
[1680711018057,1.11386533,1894.3,1893.8,3.0]
[1680711018361,1.11386533,1894.3,1893.7,0.008]
[1680711018553,1.11386533,1894.3,1893.6,4.122]
[1680711018554,1.13062665,1894.3,1893.6,4.122]
[1680711018856,12.2041,1894.2,1893.6,4.122]
[1680711019003,12.2061,1894.2,1893.6,4.122]
[1680711019333,12.2061,1894.2,1893.8,1.116]
[1680711020444,0.002,1894.2,1893.8,1.116]
[1680711020632,1.13062665,1894.3,1894.0,1.108]
[1680711021511,1.11386533,1894.3,1894.0,1.108]
[1680711023345,1.11386533,1894.3,1893.9,1.11]
[1680711024231,1.11386533,1894.3,1893.8,1.12174866]
[1680711024431,0.01676132,1894.2,1893.8,0.00574866]
[1680711024815,0.01676132,1894.2,1893.6,32.9977029]
[1680711025030,1.11386533,1894.0,1893.6,0.1317029]
[1680711025207,1.11386533,1894.0,1893.6,0.1297029]
[1680711025403,1.11386533,1894.0,1893.5,1.65139478]
[1680711026147,1.11386533,1894.0,1893.5,1.64539478]
[1680711026735,1.11386533,1894.0,1893.5,1.65139478]
[1680711027959,1.11386533,1893.8,1893.5,0.006]
[1680711028133,1.11386533,1893.8,1893.5,0.13111409]
[1680711028333,1.11386533,1893.8,1893.4,0.004]
[1680711028543,1.11386533,1893.8,1893.3,3.3919029]
[1680711028946,1.11386533,1893.8,1893.4,1.115]
[1680711029326,1.11386533,1893.8,1893.4,4.115]
[1680711029673,1.11386533,1893.8,1893.4,4.116]
[1680711029868,1.11386533,1893.8,1893.5,1.338]
[1680711030073,1.11386533,1893.8,1893.5,0.00574957]
[1680711030271,1.11020482,1893.8,1893.5,0.00574957]
[1680711031535,1.11020482,1893.7,1893.5,0.00574957]
[1680711033042,1.11020482,1893.9,1893.6,1.108]
[1680711033264,1.11020482,1894.0,1893.6,1.108]
[1680711033929,1.11020482,1894.0,1893.7,1.11]
[1680711034277,1.11020482,1894.0,1893.8,1.108]
[1680711037571,1.11020482,1894.0,1893.7,1.12174896]
[1680711038579,1.11020482,1894.0,1893.7,0.00574896]
[1680711038785,1.11020482,1894.0,1893.7,0.23574896]
[1680711039375,2.3750153,1894.0,1893.7,0.00574896]
[1680711041175,2.39177662,1894.0,1893.6,3.0]
[1680711041468,2.39177662,1894.0,1893.6,0.006]
[1680711041831,2.39177662,1894.0,1893.5,0.53111607]
[1680711042363,1.12696614,1894.0,1893.5,0.52511607]
[1680711042578,1.11020482,1894.0,1893.6,1.116]
[1680711045276,17.2179,1894.1,1893.6,1.116]
[1680711045477,11.5399,1894.1,1893.7,1.108]
[1680711046229,0.002,1894.1,1893.8,0.00574866]
[1680711046426,1.11020482,1894.2,1893.8,0.00574866]
[1680711050734,0.1277818,1894.2,1893.6,3.008]
[1680711050895,1.11020482,1893.9,1893.6,0.002]
[1680711051100,1.11020482,1893.9,1893.5,0.66725135]
[1680711051315,1.11020482,1893.9,1893.5,2.41443009]
[1680711051526,1.10659679,1893.9,1893.5,0.13652719]
[1680711051713,1.10659679,1893.9,1893.5,0.13052719]
[1680711052308,1.10659679,1893.9,1893.5,3.13052719]
[1680711052509,1.10659679,1893.9,1893.5,3.13652719]
[1680711052827,1.10659679,1893.9,1893.5,0.13452719]
[1680711053028,1.10659679,1893.9,1893.5,0.13052719]
[1680711053247,1.21725647,1893.9,1893.5,0.13052719]